fUSD/lending_fUSD_20250826
["ID","MTS","AMOUNT","RATE_DAILY","PERIOD"]
[381460525,1756221049036,-229.0,0.0002032,2]
[381460527,1756221049046,-1000.0,0.0002038,2]
[381460529,1756221049056,-328.05,0.00020403,2]
[381460531,1756221049066,-500.0,0.00020421,2]
[381460533,1756221049075,-7445.47924558,0.00020478,2]
[381460535,1756221049084,-1000.0,0.00020521,2]
[381460537,1756221049094,-1000.0,0.00020521,2]
[381460539,1756221049103,-500.0,0.00020521,2]
[381460541,1756221049112,-1000.0,0.00020547,2]
[381460543,1756221049122,-1000.0,0.00020547,2]
[381460545,1756221049132,-500.0,0.00020548,2]
[381460547,1756221049141,-1056.0,0.00020548,2]
[381460548,1756221049151,-676.0,0.00020548,2]
[381460550,1756221049163,-500.0,0.00020548,2]
[381460552,1756221049173,-453.0,0.00020548,2]
[381460554,1756221049183,-1162.0,0.00020548,2]
[381460556,1756221049194,-500.0,0.00020548,2]
[381460558,1756221049204,-21052.64,0.00020548,2]
[381460560,1756221049214,-151.73,0.00020582,2]
[381460562,1756221049224,-189.84352405,0.00020624,2]
[381460564,1756221049235,-3269.91295603,0.0002066,2]
[381460566,1756221049246,-978.68848922,0.00020691,2]
[381460568,1756221049255,-500.0,0.00020695,2]
[381460570,1756221049265,-22208.06944002,0.000207,2]
[381460572,1756221049275,-40000.0,0.000207,5]
[381460574,1756221049287,-295.245,0.00020721,2]
[381460576,1756221049296,-1000.0,0.00020735,2]
[381460578,1756221049306,-166.12,0.00020746,2]
[381460580,1756221049315,-166.12,0.00020746,2]
[381460582,1756221049324,-500.0,0.00020749,2]
[381460584,1756221049334,-500.0,0.00020749,2]
[381460586,1756221049343,-529.0,0.00020749,2]
[381460588,1756221049352,-1185.82,0.00020749,2]
[381460590,1756221049361,-173.79,0.00020749,2]
[381460592,1756221049371,-150.0,0.00020749,2]
[381460594,1756221049381,-408.65,0.00020749,2]
[381460596,1756221049390,-150.0,0.00020749,2]
[381460598,1756221049399,-150.0,0.00020749,2]
[381460600,1756221049408,-150.0,0.00020749,2]
[381460602,1756221049418,-150.0,0.00020749,2]
[381460604,1756221049428,-300.0,0.00020749,2]
[381460606,1756221049438,-408.65,0.00020749,2]
[381460608,1756221049447,-150.0,0.00020749,2]
[381460610,1756221049456,-1185.82,0.00020749,2]
[381460612,1756221049465,-408.65,0.00020749,2]
[381460613,1756221049474,-539.77,0.00020749,2]
[381460615,1756221049485,-347.58,0.00020749,2]
[381460617,1756221049495,-2369.94,0.00020749,2]
[381460619,1756221049505,-150.0,0.00020749,2]
[381460621,1756221049516,-408.65,0.00020749,2]
[381460623,1756221049525,-166.12,0.00020749,2]
[381460625,1756221049534,-539.77,0.00020749,2]
[381460627,1756221049544,-150.0,0.00020749,2]
[381460629,1756221049554,-166.12,0.00020749,2]
[381460631,1756221049563,-166.12,0.00020749,2]
[381460633,1756221049573,-166.12,0.00020749,2]
[381460635,1756221049582,-2030.1081943,0.00020786,2]
[381460637,1756221049592,-1000.0,0.000208,3]
[381460639,1756221049601,-500.0,0.00020822,2]
[381460641,1756221049610,-1056.0,0.00020822,2]
[381460643,1756221049619,-676.0,0.00020822,2]
[381460645,1756221049628,-500.0,0.00020822,2]
[381460647,1756221049637,-453.0,0.00020822,2]
[381460649,1756221049647,-1162.0,0.00020822,2]
[381460651,1756221049656,-500.0,0.00020822,2]
[381460653,1756221049666,-168.3888056,0.00020822,2]
[381460655,1756221049675,-152.91,0.0002084,2]
[381460657,1756221049686,-77037.41640314,0.0002085,2]
[381460659,1756221049695,-217.0,0.0002085,2]
[381460661,1756221049704,-1000.0,0.00020899,2]
[381460663,1756221049714,-1000.0,0.00020931,2]
[381460665,1756221049722,-1000.0,0.00020944,2]
[381460667,1756221049732,-500.0,0.00020969,2]
[381460669,1756221049741,-339.0,0.0002097,2]
[381460670,1756221049751,-581.50935891,0.00020973,2]
[381460672,1756221049760,-500.0,0.00020973,2]
[381460674,1756221049769,-500.0,0.00020973,2]
[381460676,1756221049779,-253.61123389,0.00020973,2]
[381460678,1756221049788,-500.0,0.00020973,2]
[381460680,1756221049798,-500.0,0.00020973,2]
[381460682,1756221049807,-500.0,0.00020973,2]
[381460684,1756221049817,-500.0,0.00020973,2]
[381460686,1756221049827,-500.0,0.00020973,2]
[381460688,1756221049836,-500.0,0.00020973,2]
[381460690,1756221049845,-500.0,0.00020973,2]
[381460692,1756221049854,-166.75107507,0.00020973,2]
[381460694,1756221049863,-500.0,0.00020973,2]
[381460696,1756221049873,-500.0,0.00020973,2]
[381460698,1756221049882,-500.0,0.00020973,2]
[381460700,1756221049891,-500.0,0.00020973,2]
[381460702,1756221049901,-500.0,0.00020973,2]
[381460704,1756221049911,-500.0,0.00020973,2]
[381460706,1756221049920,-646.33270953,0.00020973,2]
[381460708,1756221049929,-500.0,0.00020973,2]
[381460709,1756221049940,-309.193482,0.00020973,2]
[381460711,1756221049950,-500.0,0.00020973,2]
[381460713,1756221049959,-500.0,0.00020973,2]
[381460715,1756221049969,-276.25912775,0.00020973,2]
[381460717,1756221049979,-500.0,0.00020973,2]
[381460719,1756221049989,-500.0,0.00020973,2]
[381460721,1756221049999,-500.0,0.00020973,2]
[381460723,1756221050008,-500.0,0.00020973,2]
[381460725,1756221050018,-500.09707482,0.00020973,2]
[381460727,1756221050028,-300.2994,0.00020973,2]
[381460729,1756221050038,-500.0,0.00020973,2]
[381460731,1756221050047,-500.0,0.00020973,2]
[381460733,1756221050057,-500.11651083,0.00020973,2]
[381460736,1756221050072,-150.0,0.00020979,2]
[381460737,1756221050081,-824.83156973,0.0002098,2]
[381460739,1756221050091,-1051.2559222,0.00020981,2]
[381460741,1756221050101,-1277.68027467,0.00020983,2]
[381460743,1756221050111,-1504.10462715,0.00020984,2]
[381460745,1756221050120,-1730.52897962,0.00020985,2]
[381460747,1756221050129,-1956.95333209,0.00020986,2]
[381460749,1756221050139,-2183.37768457,0.00020988,2]
[381460751,1756221050149,-2409.80203704,0.00020989,2]
[381460753,1756221050162,-2636.22638952,0.0002099,2]
[381460755,1756221050177,-300.0,0.00020999,2]
[381460757,1756221050188,-300.0,0.00020999,2]
[381460759,1756221050198,-300.0,0.00020999,2]
[381460761,1756221050207,-300.0,0.00020999,2]
[381460762,1756221050217,-1000.0,0.00020999,2]
[381460763,1756221050226,-1000.0,0.00020999,2]
[381460764,1756221050235,-150.0,0.00020999,2]
[381460765,1756221050246,-1578.5990266,0.00021,2]
[381460766,1756221050255,-128666.02517459,0.00021,2]
[381460767,1756221050264,-20000.0,0.00021,2]
[381460768,1756221050273,-1169.34084742,0.00021,2]
[381460769,1756221050283,-193.01092232,0.00021,2]
[381460770,1756221050292,-160.0,0.00021,7]
[381460771,1756221050301,-52709.21398195,0.00021,3]
[381460772,1756221050315,-822.4249875,0.00021,3]
[381460942,1756221075218,311.31,0.00013699,2]
[381460943,1756221075453,150.0,0.00014199,3]
[381460951,1756221255561,500.0,0.00013699,2]
[381460962,1756221458060,500.0,0.00028767,120]
[381460977,1756221568189,410.16032546,0.00028767,120]
[381460984,1756221613459,400.0,0.00028767,120]
[381460985,1756221642252,7578.69,0.00011,2]
[381460986,1756221642280,15632.45,0.00011,2]
[381460987,1756221642825,26788.86,0.00011,2]
[381460988,1756221657364,13627.25462706,0.00013,2]
[381460989,1756221657389,5368.8564039,0.00013,2]
[381460990,1756221657415,5368.8564039,0.00013,2]
[381460991,1756221657437,5368.8564039,0.00013,2]
[381460992,1756221657459,5368.8564039,0.00013,2]
[381460993,1756221657482,4897.31975734,0.00013,2]
[381461008,1756221934214,159.0,0.00014,5]
[381461009,1756221934552,150.0,0.000145,3]
[381461016,1756222033645,162.53664656,0.00013699,2]
[381461017,1756222033667,149.87335344,0.00013699,2]
[381461018,1756222033878,150.0,0.00014199,3]
[381461020,1756222038903,150.0,0.00014,2]
[381461021,1756222039147,150.0,0.000145,3]
[381461028,1756222119196,263.48290017,0.000107,2]
[381461086,1756222232413,-300.0,0.00016439,3]
[381461088,1756222232423,-150.0,0.00016514,2]
[381461089,1756222232433,-250.0,0.0001659,2]
[381461090,1756222232448,-150.0,0.00016666,2]
[381461091,1756222232457,-300.0,0.0001674,3]
[381461092,1756222232470,-1000.0,0.00017177,2]
[381461094,1756222232480,-212.72434046,0.0001721,2]
[381461095,1756222232490,-406.5198,0.00017563,2]
[381461096,1756222232501,-167.73,0.00017595,2]
[381461097,1756222232510,-300.0,0.00017599,2]
[381461098,1756222232520,-1200.0,0.00017599,2]
[381461099,1756222232530,-150.99,0.000176,2]
[381461100,1756222232540,-150.99,0.000176,2]
[381461101,1756222232549,-948.69,0.000176,2]
[381461102,1756222232559,-396.43,0.000176,2]
[381461103,1756222232569,-518.0,0.00017663,7]
[381461104,1756222232579,-500.0,0.00017663,7]
[381461105,1756222232588,-1790.16,0.000177,2]
[381461106,1756222232598,-300.0,0.000178,6]
[381461107,1756222232609,-600.0,0.000179,6]
[381461108,1756222232619,-3588.88162741,0.000179,2]
[381461109,1756222232628,-158.12051871,0.000179,2]
[381461110,1756222232638,-350.68036034,0.000179,3]
[381461111,1756222232649,-220.83263652,0.000179,2]
[381461112,1756222232658,-1000.0,0.0001797,2]
[381461113,1756222232668,-500.0,0.00017973,2]
[381461114,1756222232679,-543.82301501,0.00017973,2]
[381461115,1756222232688,-500.0,0.00017973,2]
[381461116,1756222232698,-501.09059722,0.00017973,2]
[381461117,1756222232712,-500.0,0.00017973,2]
[381461118,1756222232722,-500.0,0.00017973,2]
[381461119,1756222232732,-500.0,0.00017973,2]
[381461120,1756222232742,-501.51028113,0.00017973,2]
[381461121,1756222232752,-500.0,0.00017973,2]
[381461122,1756222232762,-731.41,0.0001799,2]
[381461123,1756222232773,-731.41,0.0001799,2]
[381461125,1756222232783,-229.25702148,0.0001799,2]
[381461127,1756222232793,-550.0,0.00017997,2]
[381461129,1756222232805,-1200.0,0.00017998,2]
[381461131,1756222232815,-500.0,0.00017999,2]
[381461133,1756222232825,-500.0,0.00017999,2]
[381461135,1756222232835,-216.10190619,0.00017999,2]
[381461137,1756222232845,-500.0,0.00017999,2]
[381461139,1756222232854,-500.0,0.00017999,2]
[381461141,1756222232864,-500.0,0.00017999,2]
[381461143,1756222232874,-500.0,0.00017999,2]
[381461145,1756222232884,-500.0,0.00017999,2]
[381461147,1756222232893,-500.0,0.00017999,2]
[381461149,1756222232904,-302.7453069,0.00017999,2]
[381461151,1756222232913,-277.51010015,0.00017999,2]
[381461153,1756222232922,-500.0,0.00017999,2]
[381461155,1756222232932,-278.71987587,0.00017999,2]
[381461157,1756222232942,-789.2995133,0.00018,2]
[381461159,1756222232951,-72551.07570888,0.00018,2]
[381461161,1756222232964,-9181.70364372,0.00018,2]
[381461166,1756222233007,-907.85,0.00018,2]
[381461168,1756222233019,-1773.13336476,0.00018,2]
[381461169,1756222233032,-4195.13459444,0.00018,2]
[381461170,1756222233054,-1282.65375268,0.00018,2]
[381461171,1756222233096,-150.0,0.00016939,3]
[381461172,1756222233107,-191.53179522,0.00018,2]
[381461173,1756222233119,-1090.230939,0.00018,2]
[381461174,1756222233131,-592.36206145,0.00018,2]
[381461175,1756222233143,-26797.6323766,0.00018,2]
[381461176,1756222233159,-4610.79999998,0.00018,2]
[381461181,1756222238364,-223.68300048,0.000179,2]
[381461182,1756222238374,-22543.81699952,0.00018,2]
[381461183,1756222238446,-391513.20396834,0.00018,2]
[381461184,1756222238458,-63790.5355,0.00018,2]
[381461185,1756222238471,-75645.57335497,0.00018,2]
[381461186,1756222238484,-345.65303705,0.00018,2]
[381461187,1756222238597,-1104.8,0.00018,2]
[381461516,1756222241259,-1283.91571,0.00018,2]
[381461517,1756222241270,-74606.81099961,0.00018,2]
[381461518,1756222241286,-556698.77575142,0.00018,2]
[381461519,1756222241295,-368756.93353575,0.00018,2]
[381461520,1756222241304,-108740.87023231,0.00018,2]
[381461521,1756222241314,-248470.58228546,0.00018,2]
[381461522,1756222241329,-2839.22024586,0.00018,2]
[381461523,1756222241393,-69132.03071235,0.00018,2]
[381461691,1756222243539,-1796.25,0.00018,2]
[381461692,1756222243551,-1330321.00032064,0.00018,2]
[381461693,1756222243562,-227286.08066384,0.00018,2]
[381461694,1756222243574,-91100.0,0.00018,2]
[381461695,1756222243692,-1147.42265747,0.00018,2]
[381461729,1756222246657,-1543851.44036289,0.00018,2]
[381461730,1756222246807,-2277.27499999,0.00018,2]
[381461775,1756222610360,500.0,0.00013699,2]
[381461776,1756222610633,150.0,0.00014199,3]
[381461790,1756222925343,1524.0,0.00013566,2]
[381461817,1756223097563,296.78,0.00013699,2]
[381461818,1756223097850,150.0,0.00013698,3]
[381461830,1756223197418,6439.11,0.00011,2]
[381461934,1756223431711,-179.7,0.00016761,2]
[381461937,1756223431721,-330.8599971,0.00016763,2]
[381461939,1756223431730,-150.0,0.00016771,2]
[381461941,1756223431744,-373.07361584,0.00016771,3]
[381461942,1756223431841,-626.92638416,0.00016771,3]
[381461943,1756223431851,-211.61029532,0.00016779,2]
[381461944,1756223431862,-151.0,0.00016779,2]
[381461945,1756223431872,-73.9898174,0.00016806,2]
[381461946,1756223431883,-76.0101826,0.00016806,2]
[381461947,1756223431893,-185.23,0.00017007,2]
[381461948,1756223431902,-78.42673424,0.00017036,2]
[381461949,1756223431913,-421.57326576,0.00017036,2]
[381461950,1756223431922,-1200.0,0.00017038,2]
[381461951,1756223431932,-300.0,0.00017038,2]
[381461952,1756223431942,-300.0,0.00017038,2]
[381461953,1756223431952,-905.77190407,0.00017038,2]
[381461954,1756223431963,-294.22809593,0.00017038,2]
[381461955,1756223431973,-8890.68,0.00017039,2]
[381461956,1756223431984,-666.0,0.00017118,3]
[381461957,1756223431993,-1000.0,0.00017186,2]
[381461958,1756223432003,-160.0,0.0001719,7]
[381461959,1756223432012,-369.0,0.000173,2]
[381461960,1756223432022,-500.0,0.000176,6]
[381461961,1756223432032,-152.0,0.00017618,2]
[381461962,1756223432042,-1100.0,0.000177,6]
[381461963,1756223432052,-706.60115469,0.00017742,2]
[381461964,1756223432061,-1700.0,0.000178,6]
[381461965,1756223432077,-1363.78584,0.0001782,2]
[381461966,1756223432091,-181.906,0.00017829,2]
[381461967,1756223432101,-3245.403,0.00017829,2]
[381461968,1756223432111,-23.50013643,0.00017829,2]
[381461980,1756223433933,-526.49986357,0.00017829,2]
[381461981,1756223433943,-156.83373004,0.00017829,2]
[381461982,1756223433953,-20588.32604221,0.0001783,2]
[381461983,1756223433964,-267.46074303,0.00017889,2]
[381461984,1756223433973,-2524.82941417,0.00017889,2]
[381461985,1756223433983,-26483.53551979,0.0001789,2]
[381461986,1756223433994,-377.22128042,0.000179,2]
[381461987,1756223434004,-1021.0,0.000179,2]
[381461988,1756223434014,-1000.0,0.000179,2]
[381461989,1756223434023,-5000.0,0.000179,2]
[381461990,1756223434033,-12040.09366138,0.000179,2]
[381461991,1756223434042,-665.13224466,0.000179,2]
[381461992,1756223434052,-2200.0,0.000179,6]
[381461993,1756223434061,-6312.53845047,0.000179,2]
[381461994,1756223434070,-162.86024063,0.000179,2]
[381461995,1756223434079,-234.85823742,0.000179,2]
[381461996,1756223434089,-364.53094335,0.000179,2]
[381461997,1756223434099,-2618.2481025,0.00017944,2]
[381461998,1756223434108,-500.87000414,0.00017973,2]
[381461999,1756223434117,-500.0,0.00017973,2]
[381462000,1756223434126,-500.0,0.00017973,2]
[381462001,1756223434136,-500.0,0.00017973,2]
[381462002,1756223434145,-500.0,0.00017973,2]
[381462003,1756223434155,-500.0,0.00017973,2]
[381462004,1756223434164,-500.0,0.00017973,2]
[381462005,1756223434173,-500.0,0.00017973,2]
[381462006,1756223434183,-566.54497669,0.00017973,2]
[381462007,1756223434192,-500.0,0.00017973,2]
[381462008,1756223434202,-500.30834101,0.00017973,2]
[381462009,1756223434212,-500.0,0.00017973,2]
[381462010,1756223434221,-500.0,0.00017973,2]
[381462011,1756223434231,-500.0,0.00017973,2]
[381462012,1756223434241,-500.0,0.00017973,2]
[381462013,1756223434250,-500.0,0.00017973,2]
[381462014,1756223434260,-500.0,0.00017973,2]
[381462015,1756223434269,-500.0,0.00017973,2]
[381462016,1756223434279,-500.93692735,0.00017973,2]
[381462017,1756223434288,-343.1666302,0.00017973,2]
[381462018,1756223434298,-514.17478768,0.00017973,2]
[381462019,1756223434307,-500.0,0.00017973,2]
[381462020,1756223434317,-500.70659059,0.00017973,2]
[381462021,1756223434326,-159.51456437,0.00017973,2]
[381462022,1756223434336,-500.0,0.00017973,2]
[381462023,1756223434345,-501.21214153,0.00017973,2]
[381462024,1756223434354,-500.0,0.00017973,2]
[381462025,1756223434364,-371.38328434,0.00017973,2]
[381462026,1756223434373,-500.0,0.00017973,2]
[381462027,1756223434382,-327.44063252,0.00017973,2]
[381462028,1756223434391,-157.79468816,0.00017982,2]
[381462029,1756223434400,-322.6107,0.00017989,2]
[381462030,1756223434410,-1065.76919056,0.00017989,2]
[381462031,1756223434420,-1000.0,0.00017989,2]
[381462032,1756223434433,-500.0,0.00017989,2]
[381462033,1756223434443,-303.64509572,0.00017989,2]
[381462034,1756223434452,-695.39793187,0.00017989,2]
[381462035,1756223434462,-179.07893877,0.0001799,2]
[381462036,1756223434473,-300.0,0.00017999,2]
[381462037,1756223434483,-300.0,0.00017999,2]
[381462038,1756223434494,-150.0,0.00017999,2]
[381462039,1756223434504,-500.0,0.00017999,2]
[381462040,1756223434513,-500.0,0.00017999,2]
[381462041,1756223434524,-495.41792615,0.00017999,2]
[381462042,1756223434533,-340.1614112,0.00017999,2]
[381462043,1756223434543,-293.91703329,0.00017999,2]
[381462044,1756223434553,-412.9002118,0.00017999,2]
[381462045,1756223434563,-500.0,0.00017999,2]
[381462046,1756223434573,-297.64875105,0.00017999,2]
[381462047,1756223434583,-577.0066143,0.00017999,2]
[381462048,1756223434593,-500.0,0.00017999,2]
[381462049,1756223434603,-260.80274277,0.00017999,2]
[381462050,1756223434613,-561.39144199,0.00017999,2]
[381462051,1756223434623,-2715.12328229,0.00017999,2]
[381462052,1756223434636,-2000.0,0.00018,2]
[381462053,1756223434652,-736984.66440689,0.00018,2]
[381462054,1756223434680,-276.649191,0.00018,2]
[381462055,1756223434691,-2828.22624349,0.00018,2]
[381462056,1756223434703,-3713.03011095,0.00018,2]
[381462057,1756223434714,-1182.29582589,0.00018,2]
[381462058,1756223434726,-8859.17145165,0.00018,2]
[381462059,1756223435147,-150.0,0.00017261,3]
[381462060,1756223435157,-1882.49638822,0.00018,2]
[381462061,1756223435168,-1377.81570734,0.00018,2]
[381462062,1756223435179,-2927.46304358,0.00018,2]
[381462063,1756223435209,-592.3,0.00018,2]
[381462064,1756223435221,-312.13489786,0.00018,2]
[381462065,1756223435235,-131932.28167875,0.00018,2]
[381462066,1756223435250,-897.63679926,0.00018,2]
[381462067,1756223435271,-969.19187044,0.00018,2]
[381462069,1756223437611,-8937.51464379,0.00018,2]
[381462070,1756223437713,-7472.31670245,0.00018,2]
[381462071,1756223437818,-2021.58959784,0.00018,2]
[381462072,1756223437831,-359.04234521,0.00018,2]
[381462073,1756223437843,-840.14185856,0.00018,2]
[381462230,1756223439662,-2418.18,0.00018,2]
[381462233,1756223439673,-76358.46210319,0.00018,2]
[381462250,1756223439807,-2307227.20018203,0.00018,2]
[381462252,1756223439819,-1000.0,0.00018,2]
[381462254,1756223439828,-500.0,0.00018,2]
[381462256,1756223439838,-53795.0952763,0.00018,2]
[381462258,1756223439848,-328.376947,0.00018,2]
[381462260,1756223439858,-2815.58284374,0.00018054,2]
[381462262,1756223439867,-2919.75940895,0.00018109,2]
[381462264,1756223439877,-3027.79050709,0.00018164,2]
[381462266,1756223439886,-1000.0,0.0001817,2]
[381462268,1756223439895,-1500.0,0.0001817,2]
[381462270,1756223439905,-3139.81875585,0.00018219,2]
[381462272,1756223439915,-12040.0936613,0.00018233,2]
[381462274,1756223439924,-6312.53845038,0.00018233,2]
[381462276,1756223439933,-500.0,0.00018273,2]
[381462278,1756223439943,-3255.99204981,0.00018274,2]
[381462280,1756223439952,-151.0,0.00018314,2]
[381462282,1756223439961,-151.0,0.00018326,2]
[381462284,1756223439970,-150.0,0.00018329,3]
[381462286,1756223439980,-2757.09007396,0.00018329,2]
[381462288,1756223439989,-1000.0,0.0001837,2]
[381462289,1756223440003,-652.44285119,0.0001837,2]
[381462290,1756223440012,-959.393155,0.000184,2]
[381462291,1756223440021,-151.76,0.00018426,2]
[381462292,1756223440030,-152.24,0.00018427,2]
[381462293,1756223440040,-495.0,0.00018435,2]
[381462294,1756223440049,-495.0,0.00018435,2]
[381462295,1756223440059,-495.0,0.00018435,2]
[381462296,1756223440069,-495.0,0.00018435,2]
[381462297,1756223440079,-495.0,0.00018435,2]
[381462298,1756223440088,-495.0,0.00018435,2]
[381462299,1756223440098,-495.0,0.00018435,2]
[381462300,1756223440107,-495.0,0.00018435,2]
[381462301,1756223440117,-495.0,0.00018435,2]
[381462303,1756223440127,-495.0,0.00018435,2]
[381462304,1756223440137,-495.0,0.00018435,2]
[381462305,1756223440147,-495.0,0.00018435,2]
[381462306,1756223440156,-495.0,0.00018435,2]
[381462307,1756223440166,-495.0,0.00018435,2]
[381462308,1756223440175,-938.0,0.00018439,2]
[381462309,1756223440187,-938.0,0.00018439,2]
[381462310,1756223440197,-938.0,0.00018439,2]
[381462311,1756223440207,-938.0,0.00018439,2]
[381462312,1756223440216,-938.0,0.00018439,2]
[381462313,1756223440226,-938.0,0.00018439,2]
[381462314,1756223440235,-938.0,0.00018439,2]
[381462315,1756223440246,-938.0,0.00018439,2]
[381462316,1756223440255,-938.0,0.00018439,2]
[381462317,1756223440265,-938.0,0.00018439,2]
[381462319,1756223440275,-938.0,0.00018439,2]
[381462321,1756223440285,-938.0,0.00018439,2]
[381462323,1756223440295,-938.0,0.00018439,2]
[381462324,1756223440304,-938.0,0.00018439,2]
[381462326,1756223440313,-150.0,0.0001844,2]
[381462328,1756223440323,-250.0,0.0001844,2]
[381462330,1756223440333,-1000.0,0.0001844,3]
[381462332,1756223440342,-495.0,0.00018446,2]
[381462334,1756223440351,-495.0,0.00018446,2]
[381462336,1756223440361,-495.0,0.00018446,2]
[381462338,1756223440373,-495.0,0.00018446,2]
[381462340,1756223440382,-495.0,0.00018446,2]
[381462342,1756223440392,-495.0,0.00018446,2]
[381462344,1756223440401,-495.0,0.00018446,2]
[381462346,1756223440410,-495.0,0.00018446,2]
[381462348,1756223440419,-495.0,0.00018446,2]
[381462350,1756223440429,-495.0,0.00018446,2]
[381462352,1756223440438,-495.0,0.00018446,2]
[381462354,1756223440448,-495.0,0.00018446,2]
[381462356,1756223440457,-495.0,0.00018446,2]
[381462358,1756223440466,-495.0,0.00018446,2]
[381462360,1756223440475,-938.0,0.00018448,2]
[381462362,1756223440484,-938.0,0.00018448,2]
[381462364,1756223440494,-938.0,0.00018448,2]
[381462366,1756223440503,-938.0,0.00018448,2]
[381462368,1756223440512,-938.0,0.00018448,2]
[381462370,1756223440522,-938.0,0.00018448,2]
[381462372,1756223440531,-938.0,0.00018448,2]
[381462374,1756223440540,-938.0,0.00018448,2]
[381462376,1756223440548,-938.0,0.00018448,2]
[381462377,1756223440557,-938.0,0.00018448,2]
[381462379,1756223440567,-938.0,0.00018448,2]
[381462381,1756223440576,-938.0,0.00018448,2]
[381462383,1756223440586,-938.0,0.00018448,2]
[381462385,1756223440595,-938.0,0.00018448,2]
[381462387,1756223440604,-495.0,0.00018455,2]
[381462389,1756223440614,-495.0,0.00018455,2]
[381462391,1756223440624,-495.0,0.00018455,2]
[381462393,1756223440633,-495.0,0.00018455,2]
[381462395,1756223440643,-495.0,0.00018455,2]
[381462397,1756223440652,-495.0,0.00018455,2]
[381462399,1756223440662,-495.0,0.00018455,2]
[381462401,1756223440672,-495.0,0.00018455,2]
[381462403,1756223440681,-495.0,0.00018455,2]
[381462405,1756223440691,-495.0,0.00018455,2]
[381462407,1756223440700,-495.0,0.00018455,2]
[381462409,1756223440710,-495.0,0.00018455,2]
[381462411,1756223440719,-495.0,0.00018455,2]
[381462413,1756223440728,-495.0,0.00018455,2]
[381462415,1756223440740,-289.99702758,0.00018457,2]
[381462417,1756223440752,-150.0,0.00018457,2]
[381462419,1756223440762,-938.0,0.00018457,2]
[381462421,1756223440772,-938.0,0.00018457,2]
[381462422,1756223440783,-938.0,0.00018457,2]
[381462424,1756223440794,-938.0,0.00018457,2]
[381462426,1756223440805,-938.0,0.00018457,2]
[381462427,1756223440815,-938.0,0.00018457,2]
[381462428,1756223440825,-938.0,0.00018457,2]
[381462429,1756223440834,-938.0,0.00018457,2]
[381462430,1756223440844,-938.0,0.00018457,2]
[381462431,1756223440854,-938.0,0.00018457,2]
[381462433,1756223440864,-938.0,0.00018457,2]
[381462435,1756223440874,-938.0,0.00018457,2]
[381462437,1756223440883,-938.0,0.00018457,2]
[381462439,1756223440892,-938.0,0.00018457,2]
[381462441,1756223440902,-495.0,0.00018462,2]
[381462443,1756223440911,-495.0,0.00018462,2]
[381462445,1756223440921,-495.0,0.00018462,2]
[381462447,1756223440931,-495.0,0.00018462,2]
[381462449,1756223440940,-495.0,0.00018462,2]
[381462451,1756223440950,-495.0,0.00018462,2]
[381462453,1756223440961,-495.0,0.00018462,2]
[381462455,1756223440970,-495.0,0.00018462,2]
[381462457,1756223440981,-495.0,0.00018462,2]
[381462459,1756223440990,-495.0,0.00018462,2]
[381462461,1756223441008,-495.0,0.00018462,2]
[381462463,1756223441017,-495.0,0.00018462,2]
[381462465,1756223441027,-495.0,0.00018462,2]